bitfinex/quotes_BTCUSD_20241201
["timestamp","ask_amount","ask_price","bid_price","bid_amount"]
[1733058179223,0.56235773,96873.0,96872.0,0.05816823]
[1733058179896,0.56235773,96873.0,96872.0,0.05903223]
[1733058180104,0.55663814,96873.0,96872.0,0.05903223]
[1733058180737,0.50703814,96873.0,96872.0,0.05903223]
[1733058183553,0.50705801,96873.0,96872.0,0.05903223]
[1733058187203,0.50705745,96873.0,96872.0,0.05903223]
[1733058187811,0.50705745,96873.0,96864.0,0.0828]
[1733058187812,0.0010168,96866.0,96853.0,0.0823]
[1733058188027,0.0010168,96866.0,96859.0,0.00091684]
[1733058188234,0.03247729,96866.0,96859.0,0.00091684]
[1733058188491,0.8786925,96866.0,96865.0,0.096765]
[1733058188730,0.89471202,96866.0,96865.0,0.014169]
[1733058188938,0.3575018,96859.0,96858.0,0.193519]
[1733058189180,0.46034701,96859.0,96858.0,0.193519]
[1733058189408,0.49708745,96859.0,96858.0,0.193519]
[1733058189864,0.49708745,96859.0,96858.0,0.09027]
[1733058190742,0.49708745,96859.0,96841.0,0.075]
[1733058190743,0.29960245,96859.0,96841.0,0.075]
[1733058190950,0.3565,96852.0,96841.0,0.075]
[1733058191159,0.4908057,96852.0,96841.0,0.075]
[1733058191423,0.38897729,96852.0,96845.0,0.00091767]
[1733058192282,0.3891556,96852.0,96851.0,0.2001033]
[1733058192494,0.3981556,96852.0,96851.0,0.2001033]
[1733058192913,0.3981556,96852.0,96851.0,0.2009673]
[1733058193349,0.4041556,96852.0,96851.0,0.2009673]
[1733058196818,0.40410986,96852.0,96851.0,0.2009673]
[1733058197731,0.48094023,96852.0,96851.0,0.2009673]
[1733058198150,0.40410986,96852.0,96851.0,0.2009673]
[1733058200389,0.40411207,96852.0,96851.0,0.2009673]
[1733058202107,0.40939202,96852.0,96851.0,0.2009673]
[1733058203470,0.40940214,96852.0,96851.0,0.2009673]
[1733058203909,0.40940214,96852.0,96851.0,0.2239673]
[1733058205074,0.41112894,96852.0,96851.0,0.2239673]
[1733058207399,0.41112894,96852.0,96851.0,0.3524673]
[1733058207400,0.40483219,96852.0,96851.0,0.3524673]
[1733058208951,0.15,96856.0,96851.0,0.37411251]
[1733058209171,0.206491,96857.0,96852.0,0.1051167]
[1733058209389,0.01601258,96867.0,96855.0,0.01]
[1733058209601,0.01601258,96870.0,96859.0,0.0806]
[1733058209839,0.206481,96861.0,96860.0,0.02391622]
[1733058210953,0.356481,96861.0,96860.0,0.02391622]
[1733058212522,0.15,96862.0,96861.0,0.01]
[1733058212840,0.15,96862.0,96861.0,0.11451647]
[1733058213283,0.15,96862.0,96861.0,0.16041647]
[1733058213541,0.15,96862.0,96861.0,0.15041647]
[1733058213970,0.151,96862.0,96861.0,0.15841647]
[1733058214397,0.151,96862.0,96861.0,0.16141647]
[1733058214813,0.001,96862.0,96861.0,0.17141647]
[1733058217013,0.0027268,96862.0,96861.0,0.17141647]
[1733058218789,0.1527268,96862.0,96861.0,0.17141647]
[1733058220132,0.0027268,96862.0,96861.0,0.17141647]
[1733058220366,0.1527268,96862.0,96861.0,0.17141647]
[1733058220989,0.16231814,96862.0,96861.0,0.17141647]
[1733058223350,0.1527268,96862.0,96861.0,0.17141647]
[1733058223572,0.16231897,96862.0,96861.0,0.17141647]
[1733058224961,0.01231897,96862.0,96861.0,0.17141647]
[1733058225577,0.16231897,96862.0,96861.0,0.17141647]
[1733058226570,0.01231897,96862.0,96861.0,0.17141647]
[1733058226823,0.01231886,96862.0,96861.0,0.17141647]
[1733058227059,0.16231886,96862.0,96861.0,0.17141647]
[1733058227269,0.16231888,96862.0,96861.0,0.17141647]
[1733058227917,0.16231888,96862.0,96861.0,0.28324488]
[1733058227918,0.0027268,96862.0,96861.0,0.28324488]
[1733058228124,0.0027268,96862.0,96861.0,0.28232841]
[1733058244131,0.0027268,96862.0,96861.0,0.31450144]
[1733058249188,0.001728,96880.0,96872.0,0.2484412]
[1733058249443,0.001728,96880.0,96872.0,0.47788641]
[1733058249669,0.001728,96880.0,96872.0,0.51005944]
[1733058252508,0.002728,96873.0,96872.0,0.51905944]
[1733058253334,0.001728,96880.0,96872.0,0.51905944]
[1733058253335,0.001728,96880.0,96879.0,0.2254262]
[1733058253567,0.001728,96880.0,96879.0,0.48704444]
[1733058255091,0.002728,96880.0,96879.0,0.49604444]
[1733058255501,0.002728,96880.0,96879.0,0.51904444]
[1733058256137,0.003728,96880.0,96879.0,0.52804444]
[1733058257508,0.003728,96880.0,96879.0,0.24330144]
[1733058257739,0.003728,96880.0,96879.0,0.21112841]
[1733058257966,0.003728,96880.0,96879.0,0.22204343]
[1733058258251,0.003728,96880.0,96879.0,0.22112841]
[1733058258517,0.001728,96880.0,96879.0,0.20312841]
[1733058258705,0.001728,96880.0,96879.0,0.22704343]
[1733058258955,0.001728,96880.0,96879.0,0.23012841]
[1733058259458,0.001728,96880.0,96879.0,0.22612841]
[1733058260192,0.002728,96880.0,96879.0,0.23512841]
[1733058260423,0.001728,96880.0,96879.0,0.22612841]
[1733058260666,0.002728,96880.0,96879.0,0.23512841]
[1733058261154,0.002728,96880.0,96879.0,0.3165709]
[1733058262490,0.003728,96880.0,96879.0,0.3245709]
[1733058264557,0.000864,96888.0,96887.0,0.3574092]
[1733058264785,0.000864,96888.0,96887.0,0.4923969]
[1733058265868,0.00099348,96888.0,96887.0,0.4923969]
[1733058266075,0.00199348,96888.0,96887.0,0.5013969]
[1733058266533,0.00199348,96888.0,96887.0,0.5243969]
[1733058267204,0.00199348,96888.0,96887.0,0.5333969]
[1733058276095,0.0008639,96895.0,96894.0,0.2253942]
[1733058276317,0.0008639,96895.0,96894.0,0.3833819]
[1733058276583,0.0008639,96895.0,96894.0,0.5122819]
[1733058277477,0.0008639,96895.0,96894.0,0.5212819]
[1733058278337,0.0008639,96895.0,96894.0,0.5122819]
[1733058278773,0.0008639,96895.0,96894.0,0.5192819]
[1733058279224,0.0008637,96916.0,96903.0,0.0189832]
[1733058279437,0.0008637,96916.0,96903.0,0.49017515]
[1733058279643,0.0008637,96916.0,96903.0,0.4892619]
[1733058281437,0.0008637,96916.0,96903.0,0.5122619]
[1733058281690,0.0008637,96916.0,96903.0,0.5212619]
[1733058282765,0.0008637,96916.0,96903.0,0.5292619]
[1733058283243,0.0008637,96916.0,96903.0,0.5212619]
[1733058283685,0.0008637,96916.0,96903.0,0.5122619]
[1733058284172,0.0008637,96916.0,96903.0,0.5212619]
[1733058284576,0.0008637,96916.0,96903.0,0.5302619]
[1733058286205,0.0008637,96916.0,96910.0,0.3069602]
[1733058286436,0.0008637,96916.0,96910.0,0.33910269]
[1733058286556,0.0008637,96916.0,96910.0,0.4419479]
[1733058287667,0.0008637,96916.0,96910.0,0.4599479]
[1733058288314,0.0008637,96916.0,96910.0,0.4829479]
[1733058294098,0.0008637,96916.0,96910.0,0.4739479]
[1733058294325,0.0008637,96916.0,96910.0,0.4649479]
[1733058294545,0.0008637,96916.0,96910.0,0.4739479]
[1733058294778,0.0008637,96916.0,96910.0,0.4829479]
[1733058295150,0.0008637,96916.0,96910.0,0.4739479]
[1733058295353,0.0008637,96916.0,96910.0,0.4829479]
[1733058296190,0.0008637,96916.0,96910.0,0.4739479]
[1733058298273,0.0008637,96911.0,96910.0,0.5282479]
[1733058298506,0.0008637,96916.0,96915.0,0.0189832]
[1733058298729,0.0008637,96916.0,96915.0,0.23428354]
[1733058298951,0.0008637,96916.0,96915.0,0.2333709]
[1733058299159,0.0008637,96916.0,96915.0,0.4397369]
[1733058299830,0.0008637,96916.0,96915.0,0.4850369]
[1733058300050,0.0008637,96916.0,96915.0,0.5030369]
[1733058300312,0.0008635,96937.0,96936.0,0.2253042]
[1733058300540,0.0008635,96937.0,96936.0,0.25744669]
[1733058300775,0.0008635,96937.0,96936.0,0.3602919]
[1733058301681,0.0014609,96937.0,96936.0,0.3602919]
[1733058302410,0.0014609,96937.0,96936.0,0.3832919]
[1733058302633,0.0014609,96937.0,96936.0,0.3922919]
[1733058303022,0.0014609,96937.0,96936.0,0.3992919]
[1733058303689,0.0014609,96937.0,96936.0,0.3922919]
[1733058303903,0.0014609,96937.0,96936.0,0.4002919]
[1733058304808,0.0014609,96937.0,96936.0,0.5249919]
[1733058305940,0.0014609,96937.0,96936.0,0.5079919]
[1733058306158,0.0014609,96937.0,96936.0,0.5169919]
[1733058306377,0.0014609,96937.0,96936.0,0.5249919]
[1733058314091,0.0017274,96949.0,96948.0,0.0189832]
[1733058314345,0.0019065,96949.0,96948.0,0.32812441]
[1733058314593,0.0019065,96949.0,96948.0,0.3602669]
[1733058314840,0.0019065,96949.0,96948.0,0.4356669]
[1733058315072,0.0019065,96949.0,96948.0,0.4828669]
[1733058315789,0.0019065,96949.0,96948.0,0.4918669]
[1733058316001,0.0488,96974.0,96973.0,0.0189832]
[1733058316243,0.0488,96974.0,96973.0,0.04289426]
[1733058316461,0.0488,96974.0,96973.0,0.14573947]
[1733058316675,0.0488,96974.0,96973.0,0.17780553]
[1733058317338,0.0488,96974.0,96973.0,0.14573947]
[1733058317568,0.0782634,96985.0,96980.0,0.0089832]
[1733058317794,0.0782634,96985.0,96984.0,0.023]
[1733058318058,0.07815619,96985.0,96984.0,0.35195783]
[1733058318278,0.04955619,96985.0,96984.0,0.35104741]
[1733058318989,0.00093516,96985.0,96984.0,0.35104741]
[1733058319505,0.00093516,96985.0,96984.0,0.36004741]
[1733058320421,0.00093516,96985.0,96984.0,0.35104741]
[1733058320885,0.00093516,96985.0,96984.0,0.38307719]
[1733058321106,0.00093516,96985.0,96984.0,0.38907719]
[1733058321623,0.00093516,96985.0,96984.0,0.38307719]
[1733058321867,0.00093516,96985.0,96984.0,0.39107719]
[1733058322340,0.00093516,96985.0,96984.0,0.40007719]
[1733058322572,0.00093516,96985.0,96984.0,0.39107719]
[1733058323291,0.00093516,96985.0,96984.0,0.40007719]
[1733058324671,0.00093516,96985.0,96984.0,0.39207719]
[1733058325187,0.00093516,96985.0,96984.0,0.40107719]
[1733058325639,0.00093516,96985.0,96984.0,0.39207719]
[1733058325873,0.00093516,96985.0,96984.0,0.40107719]
[1733058326346,0.0008634,97001.0,96988.0,0.0419832]
[1733058326560,0.0008634,97001.0,96988.0,0.17773031]
[1733058327482,0.0008634,97001.0,96988.0,0.18673031]
[1733058328189,0.0008634,97001.0,96988.0,0.19473031]
[1733058333735,0.0008634,97001.0,96988.0,0.18573031]
[1733058333951,0.0008634,97001.0,96988.0,0.19473031]
[1733058334640,0.0008634,97001.0,96988.0,0.18673031]
[1733058335138,0.0008634,97001.0,96988.0,0.19473031]
[1733058335658,0.0008634,97001.0,96988.0,0.18673031]
[1733058335921,0.0453,96991.0,96988.0,0.19482052]
[1733058336158,0.0010622,96989.0,96988.0,0.19482052]
[1733058336859,0.0010622,96989.0,96988.0,0.1957305]
[1733058337561,0.0453,96999.0,96991.0,0.0189832]
[1733058337790,0.0453,96999.0,96991.0,0.17773045]
[1733058338973,0.0453,96999.0,96991.0,0.18673045]
[1733058339447,0.0759634,96992.0,96991.0,0.17683732]
[1733058339689,0.1212634,96992.0,96991.0,0.17683732]
[1733058339918,0.12405758,96992.0,96991.0,0.14484521]
[1733058340167,0.12405758,96992.0,96991.0,0.15382841]
[1733058340394,0.12405758,96992.0,96991.0,0.1547388]
[1733058340860,0.1212634,96992.0,96991.0,0.1637388]
[1733058341306,0.12405754,96992.0,96991.0,0.19580437]
[1733058342900,0.04895754,96992.0,96991.0,0.19580437]
[1733058343355,0.0461634,96992.0,96991.0,0.19580437]
[1733058345909,0.0008634,96992.0,96991.0,0.19580437]
[1733058360436,0.0008634,96992.0,96991.0,0.19489398]
[1733058361322,0.0008634,96992.0,96991.0,0.19580394]
[1733058364237,0.0008634,96992.0,96991.0,0.31980394]
[1733058364465,0.0008634,96992.0,96991.0,0.31889398]
[1733058365856,0.0008634,96992.0,96991.0,0.27219398]
[1733058366123,0.0008634,96992.0,96991.0,0.19489398]
[1733058369048,0.0008634,96992.0,96991.0,0.19580401]
[1733058369497,0.0008634,96992.0,96991.0,0.15291078]
[1733058369724,0.1249634,96992.0,96991.0,0.15382111]
[1733058369968,0.1249634,96992.0,96991.0,0.15291078]
[1733058370261,0.12775883,96992.0,96991.0,0.15291078]
[1733058370458,0.12775883,96992.0,96991.0,0.11184521]
[1733058370706,0.12775883,96992.0,96991.0,0.10284521]
[1733058370930,0.12775883,96992.0,96991.0,0.11584521]
[1733058371148,0.27775883,96992.0,96991.0,0.013]
[1733058371368,0.356204,96991.0,96989.0,0.001727]
[1733058371854,0.12689252,96990.0,96989.0,0.001727]
[1733058373402,0.12689252,96990.0,96989.0,0.010727]
[1733058374511,0.12689252,96990.0,96989.0,0.013727]
[1733058376109,0.05159252,96990.0,96989.0,0.11748325]
[1733058376333,0.00279252,96990.0,96989.0,0.11748325]
[1733058376785,0.0008634,96992.0,96989.0,0.11748325]
[1733058376999,0.0008634,96992.0,96990.0,0.00091047]
[1733058377266,0.00278541,96991.0,96990.0,0.10284521]
[1733058377671,0.0008634,96992.0,96990.0,0.10284521]
[1733058377943,0.00278566,96991.0,96990.0,0.10284521]
[1733058378873,0.05008566,96991.0,96990.0,0.10284521]
[1733058379085,0.05008566,96991.0,96989.0,0.012727]
[1733058379086,0.206206,96990.0,96989.0,0.012727]
[1733058379344,0.287806,96990.0,96989.0,0.012727]
[1733058379565,0.2905928,96990.0,96989.0,0.003727]
[1733058380205,0.2905928,96990.0,96989.0,0.001727]
[1733058380650,0.2905928,96990.0,96989.0,0.010727]
[1733058381459,0.2905928,96990.0,96989.0,0.020727]
[1733058381836,0.2905928,96990.0,96989.0,0.023727]
[1733058383026,0.3378928,96990.0,96989.0,0.023727]
[1733058385479,0.3387563,96990.0,96989.0,0.023727]
[1733058389922,0.0036503,96990.0,96989.0,0.023727]
[1733058390147,0.0036503,96990.0,96989.0,0.12657221]
[1733058392018,0.0008635,96990.0,96989.0,0.12657221]
[1733058392478,0.00355448,96990.0,96989.0,0.12657221]
[1733058392708,0.0008635,96990.0,96989.0,0.12657221]
[1733058396603,0.0008635,96990.0,96989.0,0.023727]
[1733058396818,0.0027494,96990.0,96989.0,0.023727]
[1733058397718,0.0050305,96990.0,96989.0,0.023727]
[1733058397919,0.0027494,96990.0,96989.0,0.023727]
[1733058398438,0.00503059,96990.0,96989.0,0.023727]
[1733058399574,0.0027494,96990.0,96989.0,0.023727]
[1733058401287,0.0027494,96990.0,96989.0,0.12657221]
[1733058419819,0.00014564,96990.0,96989.0,0.12657221]
[1733058420072,0.00014564,96990.0,96989.0,0.15877789]
[1733058420297,0.00014564,96990.0,96989.0,0.15907789]
[1733058423625,0.00014564,96990.0,96989.0,0.36528589]
[1733058423860,0.00014564,96990.0,96989.0,0.44558589]
[1733058424331,0.00014564,96990.0,96989.0,0.23937789]
[1733058424550,0.00014564,96990.0,96989.0,0.23637789]
[1733058424987,0.00014564,96990.0,96989.0,0.23037789]
[1733058425267,0.00014564,96990.0,96989.0,0.23937789]
[1733058425498,0.00014564,96990.0,96989.0,0.23637789]
[1733058425916,0.00014564,96990.0,96989.0,0.24137789]
[1733058428178,0.00014564,96990.0,96989.0,0.33066109]
[1733058428388,0.0495,97031.0,97011.0,0.206161]
[1733058428599,0.206126,97028.0,97013.0,0.0803]
[1733058428809,0.206126,97028.0,97014.0,0.1037547]
[1733058429018,0.25562,97031.0,97014.0,0.1037547]
[1733058429252,0.206126,97028.0,97014.0,0.1037547]
[1733058429465,0.15,97027.0,97014.0,0.1037547]
[1733058429688,0.15273505,97027.0,97022.0,0.03]
[1733058429903,0.15291402,97027.0,97022.0,0.13284521]
[1733058431449,0.00291402,97027.0,97022.0,0.13284521]
[1733058432341,0.00291402,97027.0,97022.0,0.13484521]
[1733058432567,0.20613,97026.0,97022.0,0.13484521]
[1733058432793,0.41500389,97026.0,97022.0,0.14384521]
[1733058433037,0.20887289,97026.0,97022.0,0.14384521]
[1733058433889,0.20387289,97026.0,97022.0,0.14384521]
[1733058434104,0.20387289,97026.0,97022.0,0.14184521]
[1733058434735,0.20387289,97026.0,97022.0,0.13484521]
[1733058434965,0.20387289,97026.0,97022.0,0.14384521]
[1733058435432,0.20387289,97026.0,97022.0,0.13284521]
[1733058435627,0.20387289,97026.0,97022.0,0.14384521]
[1733058437850,0.20387289,97026.0,97022.0,0.14184521]
[1733058438056,0.00274289,97026.0,97022.0,0.14184521]
[1733058438265,0.00274289,97026.0,97022.0,0.14484521]
[1733058439329,0.20510936,97029.0,97022.0,0.14484521]
[1733058439553,0.00264435,97028.0,97022.0,0.14502418]
[1733058439759,0.206128,97027.0,97022.0,0.14502418]
[1733058439960,0.20877219,97027.0,97022.0,0.14502418]
[1733058441032,0.41490119,97027.0,97022.0,0.14502418]
[1733058441261,0.41490119,97027.0,97022.0,0.13302418]
[1733058441494,0.41490119,97027.0,97022.0,0.14402418]
[1733058441943,0.00228032,97026.0,97022.0,0.03017897]
[1733058442163,0.412264,97025.0,97022.0,0.00917897]
[1733058442390,0.206136,97023.0,97022.0,0.01217897]
[1733058442898,0.20877933,97023.0,97022.0,0.00917897]
[1733058443139,0.20877933,97023.0,97022.0,0.00017897]
[1733058444605,0.20377933,97023.0,97022.0,0.00517897]
[1733058444813,0.20377933,97023.0,97022.0,0.00017897]
[1733058445219,0.20377933,97023.0,97022.0,0.00917897]
[1733058445434,0.20377933,97023.0,97022.0,0.00217897]
[1733058445850,0.20377933,97023.0,97022.0,0.01117897]
[1733058446892,0.33077658,97023.0,97022.0,0.01117897]
[1733058447082,0.32849613,97023.0,97022.0,0.01117897]
[1733058449797,0.32849613,97023.0,97022.0,0.01117897]
[1733058449996,0.25259613,97023.0,97022.0,0.01117897]
[1733058450554,0.0008635,97027.0,97026.0,0.0089832]
[1733058450771,0.0010168,97072.0,97045.0,0.0089832]
[1733058450996,0.0010168,97072.0,97026.0,0.1267532]
[1733058450997,0.0018803,97087.0,97055.0,0.10284521]
[1733058451194,0.0010168,97085.0,97058.0,0.0089832]
[1733058451405,0.206022,97077.0,97059.0,0.17905227]
[1733058451640,0.2068745,97082.0,97059.0,0.17905227]
[1733058452244,0.0007967,97069.0,97060.0,0.206058]
[1733058452506,0.206013,97081.0,97061.0,0.10375228]
[1733058452723,0.00017883,97071.0,97068.0,0.206041]
[1733058452956,0.00017883,97071.0,97070.0,0.0089832]
[1733058453165,0.00017883,97071.0,97070.0,0.34177067]
[1733058453369,0.00017883,97071.0,97070.0,0.13482841]
[1733058453570,0.00017883,97071.0,97070.0,0.1357347]
[1733058454647,0.00017883,97071.0,97070.0,0.1267515]
[1733058454855,0.00017883,97071.0,97070.0,0.13573504]
[1733058455069,0.00017883,97071.0,97070.0,0.35077104]
[1733058455274,0.00017883,97071.0,97070.0,0.35786441]
[1733058455971,0.00017883,97071.0,97070.0,0.13482841]
[1733058456154,0.00017883,97071.0,97070.0,0.14473473]
[1733058457355,0.00017883,97071.0,97070.0,0.15373473]
[1733058457568,0.00017883,97071.0,97070.0,0.14473473]
[1733058457818,0.00017883,97071.0,97070.0,0.15373473]
[1733058458231,0.14710483,97094.0,97074.0,0.0089832]
[1733058458480,0.14710483,97094.0,97075.0,0.00090631]
[1733058458717,0.205988,97093.0,97076.0,0.00090632]
[1733058458924,0.205988,97093.0,97076.0,0.10375153]
[1733058459787,0.20599,97092.0,97076.0,0.10375153]
[1733058460883,0.15,97096.0,97076.0,0.10375153]
[1733058461099,0.205981,97097.0,97076.0,0.10375153]
[1733058461100,0.15,97094.0,97076.0,0.10375153]
[1733058461313,0.41425582,97093.0,97076.0,0.10375153]
[1733058461520,0.206,97088.0,97076.0,0.10375153]
[1733058462243,0.20599,97092.0,97076.0,0.10775153]
[1733058462472,0.20826882,97092.0,97076.0,0.10775153]
[1733058462675,0.20826882,97092.0,97076.0,0.11275153]
[1733058462890,0.20826882,97092.0,97076.0,0.10375153]
[1733058463549,0.20599,97092.0,97076.0,0.11275153]
[1733058463739,0.20599,97092.0,97076.0,0.10375153]
[1733058464395,0.20599,97092.0,97076.0,0.10875153]
[1733058464601,0.206002,97087.0,97076.0,0.10875153]
[1733058464810,0.206005,97085.0,97076.0,0.10784521]
[1733058465051,0.206005,97085.0,97076.0,0.10284521]
[1733058465464,0.201005,97085.0,97076.0,0.10384521]
[1733058465670,0.201005,97085.0,97076.0,0.11284521]
[1733058465875,0.00227892,97089.0,97076.0,0.11284521]
[1733058466090,0.205998,97088.0,97076.0,0.11184521]
[1733058466303,0.205998,97088.0,97076.0,0.10284521]
[1733058466520,0.00302361,97087.0,97076.0,0.10284521]
[1733058467159,0.15,97091.0,97077.0,0.00090674]
[1733058467383,0.205971,97101.0,97078.0,0.10284521]
[1733058467384,0.00285227,97086.0,97078.0,0.10284521]
[1733058467597,0.00285227,97086.0,97079.0,0.00090639]
[1733058467817,0.0008626,97092.0,97080.0,0.3097656]
[1733058468243,0.0008626,97092.0,97080.0,0.1037516]
[1733058468710,0.0008626,97092.0,97080.0,0.3097656]
[1733058470028,0.0008626,97092.0,97080.0,0.1127348]
[1733058470255,0.0008626,97092.0,97081.0,0.206013]
[1733058470469,0.0008626,97092.0,97080.0,0.1217348]
[1733058470470,0.0008626,97092.0,97086.0,0.2149852]
[1733058470649,0.0008626,97092.0,97087.0,0.49140479]
[1733058470886,0.0008626,97092.0,97087.0,0.59425]
[1733058471126,0.0008626,97092.0,97087.0,0.38825]
[1733058471558,0.0008626,97092.0,97087.0,0.182251]
[1733058471771,0.0008626,97092.0,97088.0,0.205998]
[1733058471970,0.0008626,97092.0,97089.0,0.103751]
[1733058472193,0.0008626,97092.0,97090.0,0.205994]
[1733058472384,0.0008626,97092.0,97091.0,0.10375097]
[1733058473770,0.0008626,97092.0,97091.0,0.11275097]
[1733058474220,0.0008626,97092.0,97091.0,0.11273417]
[1733058474431,0.0008626,97092.0,97091.0,0.12173417]
[1733058474650,0.0008626,97092.0,97091.0,0.12873417]
[1733058475068,0.0008626,97092.0,97091.0,0.12173417]
[1733058475575,0.0008626,97092.0,97091.0,0.12873417]
[1733058476896,0.0008626,97092.0,97091.0,0.11973417]
[1733058477139,0.0008626,97092.0,97091.0,0.12873417]
[1733058477561,0.0008626,97092.0,97091.0,0.11273417]
[1733058477771,0.0008626,97092.0,97091.0,0.12173417]
[1733058478410,0.0008626,97092.0,97091.0,0.12873417]
[1733058479053,0.0008626,97092.0,97091.0,0.12173417]
[1733058479786,0.0008626,97092.0,97091.0,0.13073417]
[1733058480217,0.0008626,97092.0,97091.0,0.13073396]
[1733058481412,0.0008626,97092.0,97091.0,0.12173396]
[1733058481808,0.0008626,97092.0,97091.0,0.13073396]
[1733058482224,0.0008626,97092.0,97091.0,0.12173396]
[1733058482893,0.0008626,97092.0,97091.0,0.12175076]
[1733058484266,0.0008626,97092.0,97091.0,0.15374841]
[1733058485128,0.0008626,97092.0,97091.0,0.15284286]
[1733058485362,0.0008626,97092.0,97091.0,0.12084521]
[1733058485744,0.00416935,97092.0,97091.0,0.12084521]
[1733058485968,0.0008626,97092.0,97091.0,0.12084521]
[1733058486161,0.0008626,97092.0,97091.0,0.10284521]
[1733058486162,0.2101677,97092.0,97091.0,0.10284521]
[1733058486393,0.2068526,97092.0,97091.0,0.10284521]
[1733058486619,0.2068526,97092.0,97091.0,0.11184521]
[1733058486620,0.2101657,97092.0,97091.0,0.11184521]
[1733058487036,0.2101657,97092.0,97091.0,0.009]
[1733058487454,0.0041757,97092.0,97091.0,0.009]
[1733058487928,0.0041757,97092.0,97091.0,0.016]
[1733058488348,0.0041757,97092.0,97091.0,0.11184521]
[1733058488565,0.0041757,97092.0,97091.0,0.10284521]
[1733058488777,0.0008626,97092.0,97091.0,0.13992896]
[1733058488960,0.0008626,97092.0,97091.0,0.11684521]
[1733058489190,0.0008626,97092.0,97091.0,0.13492874]
[1733058489390,0.00443398,97092.0,97091.0,0.13492874]
[1733058489546,0.0008626,97092.0,97091.0,0.14892874]
[1733058490140,0.00443357,97092.0,97091.0,0.14892874]
[1733058490348,0.0008626,97092.0,97091.0,0.13992874]
[1733058490558,0.00443251,97092.0,97091.0,0.13992874]
[1733058490803,0.0008626,97092.0,97091.0,0.13992874]
[1733058490946,0.00443131,97092.0,97091.0,0.13492874]
[1733058491147,0.0008626,97092.0,97091.0,0.13992874]
[1733058491375,0.00443131,97092.0,97091.0,0.13992874]
[1733058491548,0.0008626,97092.0,97091.0,0.13992874]
[1733058491958,0.0008626,97092.0,97091.0,0.14892874]
[1733058492160,0.00443097,97092.0,97091.0,0.14892874]
[1733058492375,0.00443097,97092.0,97091.0,0.13992874]
[1733058492581,0.00443097,97092.0,97091.0,0.14892874]
[1733058493788,0.0008626,97092.0,97091.0,0.14892874]
[1733058496647,0.00443163,97092.0,97091.0,0.14892874]
[1733058496874,0.0008626,97092.0,97091.0,0.14892874]
[1733058497741,0.0008626,97092.0,97091.0,0.22492874]
[1733058498417,0.0008626,97092.0,97091.0,0.22522874]
[1733058498638,0.0008626,97092.0,97091.0,0.23421194]
[1733058500147,0.0008626,97092.0,97091.0,0.22521194]
[1733058500354,0.0008626,97092.0,97091.0,0.78009066]
[1733058500869,0.0008626,97092.0,97091.0,0.23421194]
[1733058501487,0.0008626,97092.0,97091.0,0.22921194]
[1733058501938,0.0008626,97092.0,97091.0,0.23821194]
[1733058502371,0.0008626,97092.0,97091.0,0.78395093]
[1733058503049,0.0008626,97092.0,97091.0,0.26121194]
[1733058503933,0.0008626,97092.0,97091.0,0.31071194]
[1733058504571,0.0002,97109.0,97108.0,0.2909392]
[1733058504785,0.0002,97109.0,97108.0,0.32302273]
[1733058505006,0.0002,97109.0,97108.0,0.42586794]
[1733058505975,0.00025959,97109.0,97108.0,0.42586794]
[1733058506186,0.00025959,97109.0,97108.0,0.44386794]
[1733058506640,0.00025959,97109.0,97108.0,0.43486794]
[1733058507875,0.00025959,97109.0,97108.0,0.22891194]
[1733058508102,0.00025959,97109.0,97108.0,0.23791194]
[1733058509277,0.00025959,97109.0,97108.0,0.22892874]
[1733058509527,0.00025959,97109.0,97108.0,0.15292874]
[1733058510195,0.00025959,97109.0,97108.0,0.12084521]
[1733058511318,0.00025959,97109.0,97108.0,0.11184521]
[1733058511511,0.00025959,97109.0,97108.0,0.11984521]
[1733058511750,0.00025959,97109.0,97108.0,0.11084521]
[1733058511987,0.00025959,97109.0,97108.0,0.11984521]
[1733058512221,0.00025959,97109.0,97108.0,0.11214521]
[1733058512436,0.00025959,97109.0,97108.0,0.11114521]
[1733058512649,0.00025959,97109.0,97108.0,0.12014521]
[1733058512875,0.00025959,97109.0,97108.0,0.11114521]
[1733058513106,0.00025959,97109.0,97108.0,0.10314521]
[1733058513318,0.00025959,97109.0,97108.0,0.11214521]
[1733058513634,0.00025959,97109.0,97108.0,0.10314521]
[1733058514551,0.00025959,97109.0,97108.0,0.11114521]
[1733058515016,0.00025959,97109.0,97108.0,0.10314521]
[1733058515281,0.00351628,97109.0,97108.0,0.11214521]
[1733058515504,0.00025959,97109.0,97108.0,0.12014521]
[1733058515709,0.00352349,97109.0,97108.0,0.11114521]
[1733058515891,0.00352349,97109.0,97108.0,0.11214521]
[1733058516135,0.00352349,97109.0,97108.0,0.10314521]
[1733058516350,0.00352349,97109.0,97108.0,0.10714521]
[1733058516580,0.00352349,97109.0,97108.0,0.11614521]
[1733058517042,0.00352349,97109.0,97108.0,0.10714521]
[1733058517822,0.00438699,97109.0,97108.0,0.10714521]
[1733058518034,0.00438699,97109.0,97108.0,0.10314521]
[1733058518488,0.00438699,97109.0,97108.0,0.11714521]
[1733058518931,0.00438699,97109.0,97108.0,0.11214521]
[1733058519122,0.00438699,97109.0,97108.0,0.12114521]
[1733058519325,0.00438699,97109.0,97108.0,0.12714521]
[1733058521948,0.13288699,97109.0,97108.0,0.12714521]
[1733058522472,0.1351654,97109.0,97108.0,0.0243]
[1733058523390,0.1351654,97109.0,97108.0,0.0063]
[1733058523856,0.1351654,97109.0,97108.0,0.0143]
[1733058524554,0.1351654,97109.0,97108.0,0.0083]
[1733058525018,0.1351654,97109.0,97108.0,0.0103]
[1733058525494,0.1351654,97109.0,97108.0,0.0003]
[1733058525942,0.1351654,97109.0,97108.0,0.0113]
[1733058530097,0.2851654,97109.0,97108.0,0.0113]
[1733058530327,0.2840631,97109.0,97108.0,0.0113]
[1733058530569,0.28178469,97109.0,97108.0,0.0113]
[1733058537003,0.28178469,97109.0,97108.0,0.0023]
[1733058537414,0.28178469,97109.0,97108.0,0.0113]
[1733058538256,0.19998469,97109.0,97108.0,0.0093]
[1733058538627,0.05226331,97109.0,97108.0,0.0123]
[1733058540376,0.00556331,97109.0,97108.0,0.0123]
[1733058541244,0.00633158,97109.0,97108.0,0.0123]
[1733058545305,0.00734838,97109.0,97108.0,0.0123]
[1733058545533,0.05634838,97109.0,97108.0,0.0123]
[1733058552944,0.00734838,97109.0,97108.0,0.0123]
[1733058562092,0.00441851,97109.0,97108.0,0.0123]
[1733058577991,0.00340171,97109.0,97108.0,0.0123]
[1733058578204,0.00112309,97109.0,97108.0,0.0123]
[1733058579082,0.00112309,97109.0,97108.0,0.04447947]
[1733058579519,0.00112309,97109.0,97108.0,0.0123]
[1733058579935,0.00112309,97109.0,97108.0,0.04446849]
[1733058580164,0.00112309,97109.0,97108.0,0.1473137]
[1733058580404,0.00112309,97109.0,97108.0,0.2714137]
[1733058581380,0.00112309,97109.0,97108.0,0.2594137]
[1733058581595,0.00112309,97109.0,97108.0,0.2684137]